bitfinex/quotes_ETHUSD_20230701
["timestamp","ask_amount","ask_price","bid_price","bid_amount"]
[1688254384731,12.04775,1924.5,1924.1,5.19713]
[1688254384903,12.04775,1924.5,1924.1,10.39436]
[1688254385930,5.19631,1924.5,1924.1,10.39436]
[1688254388010,10.39265,1924.5,1924.1,10.39436]
[1688254388217,10.39265,1924.5,1924.1,12.43155351]
[1688254388792,5.19631,1924.5,1924.1,12.43155351]
[1688254389239,10.39265,1924.5,1924.1,12.43155351]
[1688254392864,5.19631,1924.5,1924.1,12.43155351]
[1688254393370,10.39265,1924.5,1924.1,12.43155351]
[1688254393963,12.99072,1924.5,1924.1,7.23432351]
[1688254394149,14.64212,1924.5,1924.1,2.03719351]
[1688254397041,14.64212,1924.5,1924.1,7.23442351]
[1688254397452,14.64212,1924.5,1924.1,7.65918705]
[1688254402763,12.04405,1924.5,1924.1,10.34670889]
[1688254402965,14.64212,1924.5,1924.2,1.03467089]
[1688254404374,14.64212,1924.5,1924.1,10.34670889]
[1688254409586,14.64212,1924.5,1923.9,4.35461101]
[1688254409785,1.5697,1924.4,1923.9,5.0]
[1688254409990,12.992,1924.3,1923.9,3.0]
[1688254410453,12.992,1924.3,1923.9,8.19773]
[1688254410653,12.992,1924.3,1923.9,8.61381828]
[1688254410885,10.39364,1924.3,1923.9,15.81158828]
[1688254411188,10.39364,1924.3,1923.9,13.81158828]
[1688254411397,10.39364,1924.3,1923.9,15.81158828]
[1688254411680,4.16792,1924.4,1923.9,20.44080485]
[1688254411681,6.76628,1924.4,1923.9,20.44080485]
[1688254412187,6.76628,1924.4,1923.9,19.98980485]
[1688254412555,6.76628,1924.4,1923.9,21.98980485]
[1688254413183,1.5697,1924.4,1923.9,24.67732669]
[1688254413352,7.31139,1924.5,1923.9,24.67732669]
[1688254413551,5.19645,1924.4,1923.9,24.67732669]
[1688254413767,5.19645,1924.4,1924.0,2.46773267]
[1688254413967,5.19645,1924.4,1924.1,5.19718]
[1688254415213,10.3929,1924.4,1924.1,5.19718]
[1688254416091,10.3929,1924.4,1924.1,10.39441]
[1688254419211,10.3929,1924.4,1924.1,5.19718]
[1688254419417,10.39296,1924.4,1924.1,10.39441]
[1688254420908,10.39296,1924.4,1924.1,5.19718]
[1688254424908,10.39296,1924.4,1924.1,10.39441]
[1688254426422,10.39296,1924.4,1924.1,5.19718]
[1688254427229,12.99117,1924.4,1924.1,5.19718]
[1688254427619,12.99117,1924.4,1924.0,12.16710267]
[1688254427929,12.99117,1924.4,1924.0,14.85462451]
[1688254428426,14.55077,1924.4,1924.0,14.85462451]
[1688254428838,11.95256,1924.4,1924.0,18.55012451]
[1688254429602,10.39296,1924.4,1924.0,21.14887451]
[1688254435565,5.19642,1924.4,1924.0,21.14887451]
[1688254437565,10.39284,1924.4,1924.0,21.14887451]
[1688254438871,5.19642,1924.4,1924.0,21.14887451]
[1688254439931,10.39284,1924.4,1924.0,18.55012451]
[1688254440373,12.99105,1924.4,1924.0,13.35262451]
[1688254440748,14.58045,1924.4,1924.0,13.35262451]
[1688254442760,12.99105,1924.4,1924.0,18.55012451]
[1688254443672,10.39284,1924.4,1924.0,18.55012451]
[1688254443872,10.39284,1924.4,1924.1,0.79053463]
[1688254444069,10.39284,1924.4,1924.1,5.19704]
[1688254444270,10.39284,1924.4,1924.1,10.39427]
[1688254444977,5.19642,1924.4,1924.1,10.39427]
[1688254445676,10.39284,1924.4,1924.1,10.39427]
[1688254447151,5.19642,1924.4,1924.1,10.39427]
[1688254448291,10.39284,1924.4,1924.1,10.39427]
[1688254449472,10.39284,1924.4,1924.1,10.49427]
[1688254453211,12.99105,1924.4,1924.1,5.29704]
[1688254453512,1.681245,1924.4,1924.1,5.29704]
[1688254453683,1.681245,1924.4,1924.1,10.49427]
[1688254453883,6.877685,1924.4,1924.1,10.49427]
[1688254454135,9.475895,1924.4,1924.1,0.1]
[1688254454301,14.672335,1924.4,1924.1,0.1]
[1688254455917,12.074125,1924.4,1924.1,0.1]
[1688254456541,12.074125,1924.4,1924.1,0.52318248]
[1688254456922,12.074125,1924.4,1924.1,0.1]
[1688254464327,12.074125,1924.4,1924.1,5.2972]
[1688254465915,12.074125,1924.4,1924.1,0.1]
[1688254466695,12.074125,1924.4,1924.1,5.29719]
[1688254467429,12.074125,1924.4,1924.1,0.1]
[1688254470944,12.074125,1924.4,1924.1,5.29715]
[1688254472202,10.39288,1924.4,1924.1,5.29715]
[1688254474198,10.39288,1924.4,1924.1,0.1]
[1688254476151,10.39288,1924.4,1924.1,5.29722]
[1688254477558,10.39288,1924.4,1924.1,10.49445]
[1688254478760,5.19644,1924.4,1924.1,10.49445]
[1688254481852,7.31141,1924.5,1924.1,10.49445]
[1688254482738,7.31141,1924.5,1924.1,13.09306]
[1688254483946,12.50764,1924.5,1924.1,13.09306]
[1688254494970,12.50764,1924.5,1924.1,10.49445]
[1688254495145,15.82523291,1924.5,1924.1,5.29722]
[1688254498066,18.42330291,1924.5,1924.1,5.29722]
[1688254499979,18.42330291,1924.5,1924.1,10.49445]
[1688254502776,15.82523291,1924.5,1924.1,10.49445]
[1688254509149,5.19623,1924.5,1924.1,13.09306]
[1688254509289,5.19575,1924.7,1924.2,2.68752184]
[1688254509497,5.19575,1924.7,1924.3,12.99138]
[1688254509662,10.39147,1924.7,1924.3,12.99138]
[1688254509860,10.39147,1924.7,1924.3,14.55927018]
[1688254511109,12.98927,1924.7,1924.3,14.55927018]
[1688254512093,12.98927,1924.7,1924.3,11.96099018]
[1688254514007,12.98927,1924.7,1924.3,14.55933018]
[1688254516973,12.98927,1924.7,1924.3,11.96099018]
[1688254519979,12.98927,1924.7,1924.1,5.2971]
[1688254520307,10.3924,1924.5,1924.2,5.19696]
[1688254520990,10.3924,1924.5,1924.2,10.39392]
[1688254522295,5.1962,1924.5,1924.2,10.39392]
[1688254525897,5.1962,1924.5,1924.2,12.9924]
[1688254530516,10.3924,1924.5,1924.2,5.19696]
[1688254530708,11.586278,1924.5,1924.2,5.19696]
[1688254531614,10.3924,1924.5,1924.2,5.19696]
[1688254537017,10.3924,1924.5,1924.2,10.39392]
[1688254539554,10.3924,1924.5,1924.2,5.19696]
[1688254540064,12.99047,1924.5,1924.1,0.1]
[1688254540223,1.299047,1924.4,1924.1,3.1]
[1688254540551,10.39338,1924.3,1924.1,3.1]
[1688254541550,5.19669,1924.3,1924.1,3.1]
[1688254541756,5.19669,1924.3,1924.1,8.29717]
[1688254542353,5.19669,1924.3,1924.1,13.4944]
[1688254542753,11.96895,1924.4,1924.1,13.4944]
[1688254543814,11.96895,1924.4,1924.1,8.29717]
[1688254545155,6.77236,1924.4,1924.1,8.29717]
[1688254550065,1.5758,1924.4,1924.1,13.4944]
[1688254550369,1.5758,1924.4,1924.1,15.5116305]
[1688254550568,2.0446,1924.5,1924.1,15.5116305]
[1688254550869,2.0446,1924.5,1924.1,18.1102405]
[1688254551339,7.24076,1924.5,1924.1,18.1102405]
[1688254554770,12.43692,1924.5,1924.1,13.4944]
[1688254556666,14.04882,1924.5,1924.1,13.4944]
[1688254559743,14.04882,1924.5,1924.1,8.29717]
[1688254560841,16.64689,1924.5,1924.1,8.29717]
[1688254573186,16.64689,1924.5,1924.1,3.1]
[1688254574382,18.31323391,1924.5,1924.1,3.1]
[1688254576194,16.64689,1924.5,1924.1,3.1]
[1688254579295,16.64689,1924.5,1924.1,8.29721]
[1688254580297,16.64689,1924.5,1924.1,3.1]
[1688254583603,16.64689,1924.5,1924.1,8.29721]
[1688254592407,16.64689,1924.5,1924.1,8.29722]
[1688254610927,18.31323391,1924.5,1924.1,3.1]
[1688254611126,18.31323391,1924.5,1924.1,0.1]
[1688254615311,19.66523391,1924.5,1924.1,0.1]
[1688254620231,18.31323391,1924.5,1924.1,0.1]
[1688254631656,1.352,1924.4,1924.1,0.1]
[1688254631856,12.99172,1924.3,1924.1,0.1]
[1688254632027,1.299172,1924.2,1924.1,0.1]
[1688254632219,14.291572,1924.2,1924.1,0.1]
[1688254642340,12.9924,1924.2,1924.1,0.1]
[1688254647745,10.39392,1924.2,1924.1,0.1]
[1688254655791,12.9924,1924.2,1924.1,0.1]
[1688254664261,5.19696,1924.2,1924.1,0.1]
[1688254666275,10.39392,1924.2,1924.1,0.1]
[1688254669099,11.693148,1924.2,1924.1,0.1]
[1688254669304,14.291628,1924.2,1924.1,0.1]
[1688254669867,14.30817714,1924.2,1924.1,0.1]
[1688254679519,13.00894914,1924.2,1924.1,0.1]
[1688254684988,10.41046914,1924.2,1924.1,0.1]
[1688254687119,5.21350914,1924.2,1924.1,0.1]
[1688254687324,5.19658,1924.4,1924.1,10.49446]
[1688254687524,5.19628,1924.5,1924.2,1.049446]
[1688254687687,5.19628,1924.5,1924.2,6.246326]
[1688254687688,10.39253,1924.5,1924.2,6.246326]
[1688254687886,10.3924,1924.5,1924.2,6.196326]
[1688254688092,5.19615,1924.5,1924.2,6.196326]
[1688254688318,10.3923,1924.5,1924.2,7.548326]
[1688254688514,5.19615,1924.5,1924.2,7.548326]
[1688254689189,5.19615,1924.5,1924.3,0.7548326]
[1688254691900,7.79615,1924.5,1924.3,0.7548326]
[1688254692622,12.9923,1924.5,1924.3,0.7548326]
[1688254692919,12.9923,1924.5,1924.2,7.548326]
[1688254693225,12.9923,1924.5,1924.2,6.196246]
[1688254694819,15.59037,1924.5,1924.2,6.196246]
[1688254695225,15.59037,1924.5,1924.2,0.999446]
[1688254696436,15.59037,1924.5,1924.2,6.196396]
[1688254696726,12.9923,1924.5,1924.2,6.196396]
[1688254697135,12.9923,1924.5,1924.2,5.19695]
[1688254697305,15.59037,1924.5,1924.2,5.19695]
[1688254697924,12.9923,1924.5,1924.2,5.19695]
[1688254698116,7.79615,1924.5,1924.2,5.19695]
[1688254699307,7.79615,1924.5,1924.2,10.39391]
[1688254704234,12.9923,1924.5,1924.2,10.39391]
[1688254705298,12.9923,1924.5,1924.2,11.45534018]
[1688254705502,7.79615,1924.5,1924.2,11.45534018]
[1688254705738,7.79615,1924.5,1924.2,10.39391]
[1688254707609,12.9923,1924.5,1924.2,10.39391]
[1688254708541,7.79615,1924.5,1924.2,10.39391]
[1688254708919,2.6,1924.5,1924.2,10.39391]
[1688254710038,2.6,1924.5,1924.2,12.04471224]
[1688254710242,2.6,1924.5,1924.2,15.98219224]
[1688254713933,2.6,1924.5,1924.4,1.352]
[1688254714138,2.6,1924.5,1924.4,14.34305]
[1688254714347,2.6,1924.5,1924.4,20.03057184]
[1688254714507,2.6,1924.5,1924.4,22.79345202]
[1688254726065,2.6,1924.5,1924.4,23.2079708]
[1688254726265,2.6,1924.5,1924.4,23.33705294]
[1688254727784,2.6,1924.5,1924.4,20.52044896]
[1688254727939,2.6,1924.5,1924.4,19.16844896]
[1688254728833,2.6,1924.5,1924.4,16.57023896]
[1688254732587,2.6,1924.5,1924.4,19.16844896]
[1688254732774,2.6,1924.5,1924.4,20.52044896]
[1688254740550,2.6,1924.5,1924.4,19.16844896]
[1688254750923,2.6,1924.5,1924.4,21.8559708]
[1688254751131,2.6,1924.5,1924.4,23.7079708]
[1688254757335,2.6,1924.5,1924.4,24.61082605]
[1688254757839,2.6,1924.5,1924.4,23.7079708]
[1688254759415,2.6,1924.5,1924.4,24.6108251]
[1688254761108,2.6,1924.5,1924.4,25.66161564]
[1688254767993,2.6,1924.5,1924.4,24.6108251]
[1688254768134,2.6,1924.5,1924.4,22.3559708]
[1688254780299,2.6,1924.5,1924.4,23.25883099]
[1688254780500,2.6,1924.5,1924.4,23.25882763]
[1688254780687,2.6,1924.5,1924.4,22.3559708]
[1688254783619,2.6,1924.5,1924.4,23.25883188]
[1688254806408,2.6,1924.5,1924.4,23.80261929]
[1688254816337,2.6,1924.5,1924.4,23.25883188]
[1688254817245,2.6,1924.5,1924.4,23.80261929]
[1688254820142,2.6,1924.5,1924.4,23.25883188]
[1688254826665,2.6,1924.5,1924.4,23.80261929]
[1688254826988,2.6,1924.5,1924.4,23.25883188]
[1688254828530,2.6,1924.5,1924.4,23.80261929]
[1688254828849,2.6,1924.5,1924.4,23.25883188]
[1688254829252,2.6,1924.5,1924.4,23.80261929]
[1688254845812,2.6,1924.5,1924.4,21.03973911]
[1688254846145,2.6,1924.5,1924.4,20.4959517]
[1688254849780,2.6,1924.5,1924.4,21.03973911]
[1688254862565,2.6,1924.5,1924.4,18.35221727]
[1688254862864,2.6,1924.5,1924.4,15.21021986]
[1688254866291,2.6,1924.5,1924.4,17.80842986]
[1688254867565,2.6,1924.5,1924.4,15.21021986]
[1688254868730,2.6,1924.5,1924.4,17.80842986]
[1688254869041,2.86,1924.5,1924.4,4.31737986]
[1688254869360,2.86,1924.5,1924.4,3.41451878]
[1688254869534,13.2523,1924.5,1924.4,3.0]
[1688254869940,8.05615,1924.5,1924.1,11.03790741]
[1688254870135,8.05615,1924.5,1924.2,5.19682]
[1688254870136,0.805615,1924.4,1924.2,5.19682]
[1688254870541,0.805615,1924.4,1924.2,10.39378]
[1688254871461,0.805615,1924.4,1924.1,5.7164668]
[1688254871652,6.002035,1924.4,1924.1,0.5193768]
[1688254871851,0.6002035,1924.3,1924.1,0.5193768]
[1688254873941,5.7969535,1924.3,1924.1,0.5193768]
[1688254874144,0.01654914,1924.2,1924.1,0.5193768]
[1688254877871,5.21350914,1924.2,1924.1,0.5193768]
[1688254878073,0.01654914,1924.2,1924.1,0.5193768]
[1688254878249,1.1175854,1924.2,1924.1,0.5193768]
[1688254880577,6.3103,1924.5,1924.1,10.9138368]
[1688254880578,11.50655,1924.5,1924.1,10.9138368]
[1688254880747,11.50655,1924.5,1924.1,13.5124468]
[1688254882962,16.70287,1924.5,1924.1,13.5124468]
[1688254885486,16.70287,1924.5,1924.1,0.5193768]
[1688254885487,19.30094,1924.5,1924.1,0.5193768]
[1688254886583,19.30094,1924.5,1924.1,0.1]
[1688254886780,1.930094,1924.4,1924.1,0.1]
[1688254886975,10.39338,1924.3,1924.1,0.1]
[1688254892771,5.19669,1924.3,1924.1,5.29722]
[1688254895559,5.19669,1924.3,1924.1,10.49445]
[1688254913617,5.19669,1924.3,1924.1,5.29722]
[1688254913805,6.5956034,1924.3,1924.1,0.1]
[1688254915089,11.7922934,1924.3,1924.1,0.1]
[1688254915287,6.5956034,1924.3,1924.1,0.1]
[1688254915518,13.989144,1924.4,1924.1,5.29721]
[1688254915710,13.989144,1924.4,1924.1,10.49444]
[1688254917117,12.323344,1924.4,1924.1,10.49444]
[1688254927205,7.126684,1924.4,1924.1,10.49444]
[1688254929343,12.323244,1924.4,1924.1,10.49444]
[1688254929646,6.4290744,1924.3,1924.1,5.29721]
[1688254930620,6.4290744,1924.3,1924.1,10.49444]
[1688254930952,5.19675,1924.3,1924.1,10.49444]
[1688254937248,8.688254,1924.4,1924.1,5.29721]
[1688254937417,13.884814,1924.4,1924.1,5.29721]
[1688254941651,13.884814,1924.4,1924.1,0.1]
[1688254942947,16.483024,1924.4,1924.1,0.1]
[1688254943148,1.6483024,1924.3,1924.1,0.1]
[1688254943349,5.19696,1924.2,1924.1,0.1]
[1688254946632,12.0419724,1924.3,1924.1,0.1]
[1688254950855,1.6483024,1924.3,1924.1,0.1]
[1688254951058,10.39372,1924.3,1924.1,0.1]
[1688254967149,5.19685,1924.3,1924.1,0.1]
[1688254967656,4.6041,1924.5,1924.1,10.4944]
[1688254967863,9.8004,1924.5,1924.1,10.4944]
[1688254968783,14.99676,1924.5,1924.1,10.4944]
[1688254970387,17.59483,1924.5,1924.1,10.4944]
[1688254976268,19.52299791,1924.5,1924.1,10.4944]
[1688254979103,9.72446791,1924.5,1924.1,13.09301]
[1688254979269,12.9926,1924.5,1924.1,13.09301]
[1688254981586,15.59067,1924.5,1924.1,10.4944]
[1688254981902,15.59067,1924.5,1924.1,5.29717]
[1688254982299,17.23167,1924.5,1924.1,5.29717]
[1688254985311,17.23167,1924.5,1924.1,0.1]
[1688254986210,19.21628991,1924.5,1924.1,0.1]
[1688254995197,16.61628991,1924.5,1924.1,0.1]
[1688255002334,19.21628991,1924.5,1924.1,0.1]
[1688255012344,19.21628991,1924.5,1924.1,5.29714]
[1688255019736,19.21628991,1924.5,1924.1,0.1]
[1688255019931,1.92162899,1924.4,1924.1,0.1]
[1688255020231,10.39338,1924.3,1924.1,0.1]
[1688255043217,12.99172,1924.3,1924.1,0.1]
[1688255043578,2.68752184,1924.2,1924.1,0.1]
[1688255043801,15.67992184,1924.2,1924.1,0.1]
[1688255044010,18.05484802,1924.2,1924.1,0.1]
[1688255044213,23.52584802,1924.2,1924.1,0.1]
[1688255044990,24.00584802,1924.2,1924.1,0.1]
[1688255046991,24.02239716,1924.2,1924.1,0.1]
[1688255050901,27.22697746,1924.2,1923.3,1.5439]
[1688255051111,5.471,1924.0,1923.3,1.5439]
[1688255051326,21.0652,1923.8,1923.3,1.5439]
[1688255051621,12.9966,1923.6,1923.3,1.5439]
[1688255051827,12.9966,1923.6,1923.2,1.8387]
[1688255051997,12.9966,1923.6,1923.2,2.24628706]
[1688255052204,14.93778218,1923.6,1923.2,2.24356657]
[1688255053396,14.93778218,1923.6,1923.2,7.44322657]
[1688255054538,14.95433132,1923.6,1923.2,7.44322657]
[1688255055644,14.95433132,1923.6,1923.2,12.64288657]
[1688255056451,5.19858,1923.7,1923.2,15.24271657]
[1688255056601,5.19851,1923.7,1923.2,15.24271657]
[1688255056794,5.19843,1923.7,1923.2,15.24271657]
[1688255056996,2.0925,1923.9,1923.2,16.78111657]
[1688255057239,5.19845,1923.7,1923.2,16.78111657]
[1688255057436,10.3969,1923.7,1923.4,5.1991]
[1688255059745,12.99605,1923.7,1923.4,5.1991]
[1688255062342,10.3969,1923.7,1923.4,10.39822]
[1688255065808,10.3969,1923.7,1923.4,5.1991]
[1688255066011,12.99605,1923.7,1923.4,5.1991]
[1688255066209,12.99605,1923.7,1923.3,6.87734166]
[1688255067802,12.99605,1923.7,1923.3,1.67811166]
[1688255068740,12.99605,1923.7,1923.3,6.87744166]
[1688255072303,12.99605,1923.7,1923.3,5.19933]
[1688255080764,12.99605,1923.7,1923.3,10.39872]
[1688255083361,10.3969,1923.7,1923.3,12.99841]
[1688255085675,10.3969,1923.7,1923.3,10.39872]
[1688255085875,12.99605,1923.7,1923.3,10.39872]
[1688255089585,10.3969,1923.7,1923.3,10.39872]
[1688255089790,10.3969,1923.7,1923.3,12.1311474]
[1688255090671,5.19845,1923.7,1923.3,14.7308374]
[1688255090867,5.19845,1923.7,1923.4,0.90333228]
[1688255091072,5.19845,1923.7,1923.5,5.19885]
[1688255091487,5.19845,1923.7,1923.4,5.19899]
[1688255091668,10.39676,1923.7,1923.4,5.19899]
[1688255103036,14.457679,1923.7,1923.4,5.19899]
[1688255103321,14.457679,1923.7,1923.3,10.39864]
[1688255103534,14.457679,1923.7,1923.3,5.19926]
[1688255104398,14.457679,1923.7,1923.2,6.15086447]
[1688255104602,14.457679,1923.7,1923.3,0.9034001]
[1688255104926,1.4457679,1923.6,1923.3,0.9034001]
[1688255105139,10.3977,1923.5,1923.3,0.9034001]
[1688255105287,10.3977,1923.5,1923.3,6.1027801]
[1688255105489,5.19818,1923.8,1923.3,10.39877]
[1688255105782,12.05295,1923.7,1923.3,6.59437445]
[1688255105987,10.39685,1923.7,1923.3,8.12937445]
[1688255106930,10.39685,1923.7,1923.3,13.32876445]
[1688255114469,10.39685,1923.7,1923.4,0.90336705]
[1688255114681,10.39685,1923.7,1923.4,6.10237705]
[1688255114840,10.39685,1923.7,1923.4,5.19901]
[1688255120397,5.19839,1923.7,1923.4,11.591469]
[1688255120544,3.72814914,1923.9,1923.4,14.191029]
[1688255120743,5.19777,1923.9,1923.4,14.191029]
[1688255121041,10.39534,1924.0,1923.5,0.90331889]
[1688255121244,10.39534,1924.0,1923.6,10.39672]
[1688255121245,5.1979,1923.9,1923.6,10.39672]
[1688255122278,5.1979,1923.9,1923.6,11.856482]
[1688255122680,10.3958,1923.9,1923.6,11.856482]
[1688255126305,10.3958,1923.9,1923.6,10.39672]
[1688255157673,10.3958,1923.9,1923.4,4.44806]
[1688255157674,12.99468,1923.9,1923.3,3.0]
[1688255157905,14.55508,1923.9,1923.3,3.0]
[1688255158111,14.55508,1923.9,1923.3,8.19937]
[1688255158294,1.455508,1923.8,1923.3,8.19937]
[1688255158493,10.39684,1923.7,1923.3,8.19937]
[1688255158815,10.39684,1923.7,1923.3,13.39876]
[1688255159421,6.78179,1923.7,1923.3,15.39876]
[1688255161013,6.78179,1923.7,1923.3,18.42091912]
[1688255161181,6.78179,1923.7,1923.3,20.92306977]
[1688255162594,11.98018,1923.7,1923.3,3.42246912]
[1688255163007,14.57933,1923.7,1923.3,3.42246912]
[1688255163502,14.57933,1923.7,1923.3,0.42246912]
[1688255163808,14.57933,1923.7,1923.2,3.54378741]
[1688255163974,14.57933,1923.7,1923.3,0.9033925]
[1688255164170,6.656683,1923.6,1923.3,3.9033925]
[1688255164374,6.656683,1923.6,1923.3,3.0]
[1688255166004,11.855433,1923.6,1923.1,12.33728741]
[1688255166172,14.454723,1923.6,1923.2,0.4194776]
[1688255166374,14.454723,1923.6,1923.1,3.0]
[1688255166597,6.6444823,1923.5,1923.1,8.19993]
[1688255166853,14.4429123,1923.5,1923.1,3.0]
[1688255167000,11.8434923,1923.5,1923.1,3.0]
[1688255167205,11.8434923,1923.5,1923.1,8.19984]
[1688255167542,13.3950923,1923.5,1923.1,8.19984]
[1688255167742,1.33950923,1923.4,1923.1,3.0]
[1688255168044,6.53873923,1923.4,1923.1,3.0]
[1688255168441,6.53873923,1923.4,1923.1,3.42192722]
[1688255168442,11.73798923,1923.4,1923.1,3.42192722]
[1688255169915,11.73798923,1923.4,1923.1,0.42192722]
[1688255170120,11.73798923,1923.4,1923.1,5.62179722]
[1688255170320,11.73798923,1923.4,1923.1,5.19987]
[1688255173517,11.73798923,1923.4,1923.1,10.3998]
[1688255173716,10.39848,1923.4,1923.1,10.3998]
[1688255178457,5.19923,1923.4,1923.1,10.3998]
[1688255183738,10.39835,1923.4,1923.0,5.74786112]
[1688255183942,12.99791,1923.4,1923.0,0.54777112]
[1688255184143,1.039835,1923.3,1923.0,0.54777112]
[1688255184338,11.438925,1923.3,1923.0,3.12800772]
[1688255185640,7.26297,1923.4,1923.0,13.52839772]
[1688255186066,2.6,1923.5,1923.0,16.12849772]
[1688255186268,2.6,1923.5,1923.0,17.64179772]
[1688255186969,7.79889,1923.5,1923.0,17.64179772]
[1688255187626,2.6,1923.5,1923.0,17.64179772]
[1688255187839,2.6,1923.5,1923.2,12.99902]
[1688255196456,2.6,1923.5,1923.2,15.68654184]
[1688255203008,2.6,1923.5,1923.2,16.11001431]
[1688255230238,2.6,1923.5,1923.3,0.9033842]
[1688255230432,2.6,1923.5,1923.4,10.39824]
[1688255238922,1.549,1923.6,1923.4,10.39824]
[1688255239425,10.39688,1923.7,1923.4,10.39824]
[1688255241660,11.89084,1923.7,1923.4,10.39824]
[1688255242294,6.69235,1923.7,1923.4,5.19912]
[1688255242452,11.89084,1923.7,1923.3,0.41848097]
[1688255242655,11.89084,1923.7,1923.2,10.39893]
[1688255242850,6.387814,1923.6,1923.2,10.39893]
[1688255243054,11.586544,1923.6,1923.2,10.39893]
[1688255243578,13.281444,1923.6,1923.2,10.39893]
[1688255243780,13.281444,1923.6,1923.2,12.99876]
[1688255244153,13.281444,1923.6,1923.3,0.90341442]
[1688255244495,13.281444,1923.6,1923.3,10.39855]
[1688255246196,15.881444,1923.6,1923.3,10.39855]
[1688255247893,10.682714,1923.6,1923.3,10.39855]
[1688255248290,9.49363,1923.6,1923.3,10.39855]
[1688255256003,4.2949,1923.6,1923.3,10.39855]
[1688255256577,2.6,1923.6,1923.3,10.39855]
[1688255256760,2.6,1923.6,1923.4,5.0]
[1688255256978,2.6,1923.6,1923.5,12.99712]
[1688255257181,2.6,1923.6,1923.5,17.796832]
[1688255260213,2.6,1923.6,1923.5,18.796832]
[1688255268427,2.6,1923.6,1923.5,21.48435384]
[1688255268624,2.6,1923.6,1923.5,22.38762513]
[1688255268936,2.6,1923.6,1923.5,24.24252049]
[1688255269422,2.6,1923.6,1923.5,24.7863079]
[1688255269815,2.6,1923.6,1923.5,25.05404761]
[1688255270309,2.6,1923.6,1923.5,25.53404761]
[1688255271740,2.6,1923.6,1923.5,25.94499135]
[1688255272463,2.6,1923.6,1923.5,25.40120394]
[1688255274261,2.6,1923.6,1923.5,25.94499135]
[1688255275037,2.6,1923.6,1923.5,25.40120394]
[1688255282101,2.6,1923.6,1923.5,26.4321002]
[1688255282297,2.6,1923.6,1923.5,24.80946513]
[1688255282453,2.6,1923.6,1923.5,23.42619384]
[1688255284093,2.6,1923.6,1923.5,24.32937349]
[1688255284295,2.6,1923.6,1923.5,23.42619384]
[1688255285301,2.6,1923.6,1923.5,24.32936815]
[1688255286787,2.6,1923.6,1923.5,23.42619384]
[1688255286990,2.6,1923.6,1923.5,24.32936498]
[1688255287199,2.6,1923.6,1923.5,23.42619384]
[1688255292514,2.6,1923.6,1923.5,24.32936597]
[1688255298375,2.6,1923.6,1923.5,25.68411634]
[1688255304734,2.6,1923.6,1923.5,26.22790375]
[1688255307829,2.49243523,1923.6,1923.5,26.22790375]
[1688255312429,2.49243523,1923.6,1923.5,26.49953146]
[1688255313427,2.49243523,1923.6,1923.5,27.04502993]
[1688255314327,2.49243523,1923.6,1923.5,26.49953146]
[1688255316938,2.49243523,1923.6,1923.5,27.58978178]
[1688255317348,2.49243523,1923.6,1923.5,26.77436666]
[1688255318142,2.49243523,1923.6,1923.5,28.85436666]
[1688255319743,3.6536,1924.3,1923.8,15.59348]
[1688255319905,3.6536,1924.3,1924.0,12.99362]
[1688255328476,6.1536,1924.3,1924.0,12.99362]
[1688255336276,6.1536,1924.3,1924.0,13.12418511]
[1688255336980,6.1536,1924.3,1924.0,13.54503102]
[1688255349309,6.1536,1924.3,1924.0,0.55141102]
[1688255349462,6.1536,1924.3,1924.0,13.54503102]
[1688255349793,6.1536,1924.3,1924.0,13.12418511]
[1688255351174,4.4954,1924.3,1924.0,13.12418511]
[1688255352987,4.4954,1924.3,1924.0,0.13056511]
[1688255353166,4.4954,1924.3,1924.0,13.12418511]
[1688255353900,4.4954,1924.3,1924.0,12.99362]
[1688255365582,2.5,1924.3,1924.0,12.99362]
[1688255365781,2.5,1924.3,1924.2,2.0]
[1688255365986,2.5,1924.3,1924.2,14.9924]
[1688255366188,2.5,1924.3,1924.2,17.9924]
[1688255372112,2.5,1924.3,1924.2,3.0]
[1688255372314,2.5,1924.3,1924.2,13.39392]
[1688255372819,2.5,1924.3,1924.2,15.9924]
[1688255373316,2.5,1924.3,1924.2,17.79164]
[1688255387066,2.5,1924.3,1924.2,15.9924]
[1688255390456,2.5,1924.3,1924.2,18.67992184]
[1688255401900,2.5,1924.3,1924.2,19.17992184]
[1688255408389,2.5,1924.3,1924.2,20.08283378]
[1688255412751,2.5,1924.3,1924.2,22.16083378]
[1688255412957,2.5,1924.3,1924.2,27.24628475]
[1688255413795,3.7265,1925.1,1924.5,2.0]
[1688255413972,1.6175,1925.0,1924.6,15.58724]
[1688255414170,1.6175,1925.0,1924.6,17.61471618]
[1688255414369,1.6175,1925.0,1924.8,12.98835]
[1688255415225,2.109,1925.1,1924.8,12.98835]
[1688255417079,2.109,1925.1,1924.8,10.39068]
[1688255418088,2.109,1925.1,1924.8,12.98835]
[1688255420474,4.609,1925.1,1924.8,12.98835]
[1688255421376,4.609,1925.1,1924.8,14.846961]
[1688255422077,2.109,1925.1,1924.8,14.846961]
[1688255423316,1.68444914,1925.3,1924.9,2.68752184]
[1688255423619,1.6679,1925.3,1925.0,15.58425]
[1688255423784,1.6679,1925.3,1925.1,1.558425]
[1688255424110,1.6679,1925.3,1925.2,15.58278]
[1688255424283,1.9828,1925.4,1925.2,15.58278]
[1688255424702,10.38444,1926.0,1925.5,10.38668]
[1688255424893,3.5387,1926.0,1925.5,12.9834]
[1688255425114,0.35387,1925.9,1925.5,12.9834]
[1688255425273,5.54635,1925.9,1925.5,12.9834]